fUSD/lending_fUSD_20240829
["ID","MTS","AMOUNT","RATE_DAILY","PERIOD"]
[336581005,1724955038556,-556.4527113,0.00024931,15]
[336581006,1724955038567,-1258.75000001,0.00024931,15]
[336581007,1724955038578,-519.13843533,0.00024931,15]
[336581008,1724955038589,-502.47447285,0.00024931,15]
[336581009,1724955038600,-336.86651697,0.00024931,15]
[336581014,1724955040150,-2347.58158213,0.00024931,15]
[336581016,1724955040161,-4432.26839026,0.00024931,15]
[336581020,1724955040185,-3024.61252761,0.00024931,15]
[336581024,1724955040221,-11953.20000001,0.00024931,15]
[336581025,1724955040232,-7827.40409999,0.00024931,15]
[336581026,1724955040355,-2987.77510943,0.00024931,15]
[336581027,1724955040367,-286.4,0.00024931,15]
[336581028,1724955040378,-300.59930483,0.00024931,15]
[336581033,1724955040606,-92339.98351137,0.00024931,15]
[336581054,1724955043275,-4330.59626476,0.00024931,15]
[336581057,1724955043287,-483.05505679,0.00024931,15]
[336581059,1724955043299,-4996.9580171,0.00024931,15]
[336581061,1724955043312,-623.25,0.00024931,15]
[336581063,1724955043324,-427.149998,0.00024931,15]
[336581079,1724955044786,-711.66849508,0.00024931,15]
[336581080,1724955044799,-1649.63036545,0.00024931,15]
[336581081,1724955044811,-760.21,0.00024931,15]
[336581082,1724955044824,-1700.6,0.00024931,15]
[336581083,1724955044836,-547.46957672,0.00024931,15]
[336581084,1724955044873,-6462.92999997,0.00024931,15]
[336581085,1724955044884,-1075.19585022,0.00024931,15]
[336581086,1724955044896,-599.65000005,0.00024931,15]
[336581087,1724955044908,-412.74037634,0.00024931,15]
[336581088,1724955044920,-827.19049739,0.00024931,15]
[336581089,1724955045016,-715.43335499,0.00024931,15]
[336581095,1724955046314,-1264.7968584,0.00024931,15]
[336581096,1724955046327,-7359.193961,0.00024931,15]
[336581097,1724955046571,-362.1135472,0.00024014,2]
[336581098,1724955046588,-349.99877428,0.00024014,2]
[336581099,1724955046604,-287.88767852,0.00024014,2]
[336581100,1724955046618,-739.3446324,0.00024931,15]
[336581101,1724955046631,-301.4499998,0.00024931,15]
[336581102,1724955046644,-1000.0,0.00024931,15]
[336581104,1724955046666,-1235.87774031,0.00024931,15]
[336581107,1724955046678,-1508.11423878,0.00024931,15]
[336581109,1724955226291,-160.0,0.00029103,30]
[336581110,1724955226318,-925.94,0.00029103,90]
[336581111,1724955226345,-1000.0,0.00029103,30]
[336581112,1724955226372,-194.0,0.00029103,30]
[336581113,1724955226402,-3131.25687935,0.00029103,120]
[336581114,1724955226430,-152.78625486,0.00029103,120]
[336581115,1724955226457,-7998.999999,0.00029103,120]
[336581116,1724955226485,-6778.09993718,0.00029103,120]
[336581117,1724955226514,-4526.0,0.00029103,120]
[336581118,1724955226541,-10066.35402603,0.00029103,120]
[336581119,1724955226568,-4458.67920204,0.00029103,120]
[336581120,1724955226595,-4644.37093858,0.00029103,120]
[336581121,1724955226622,-41789.85643952,0.00029103,30]
[336581122,1724955226651,-21329.53665615,0.00029103,30]
[336581123,1724955226682,-300000.0,0.00029103,30]
[336581124,1724955226709,-3685.51453518,0.00029103,30]
[336581125,1724955226737,-7057.79044632,0.00029103,30]
[336581126,1724955226765,-287.4426212,0.00029103,120]
[336581127,1724955226792,-131106.40258567,0.00029103,30]
[336581128,1724955226819,-5896.35398342,0.00029103,30]
[336581129,1724955226847,-5210.46700088,0.00029103,30]
[336581130,1724955226874,-3935.26192637,0.00029103,30]
[336581131,1724955226903,-3633.00431521,0.00029103,30]
[336581132,1724955226929,-796464.48117848,0.00029103,30]
[336581133,1724955226956,-1635567.40107456,0.00029103,30]
[336581134,1724955232027,-174659.05495209,0.00029103,30]
[336581135,1724955232053,-11335.95219847,0.00029103,30]
[336581136,1724955232080,-6598.35138133,0.00029103,30]
[336581137,1724955232107,-317405.93538698,0.00029103,30]
[336581138,1724955232133,-4397.00091084,0.00029103,30]
[336581139,1724955232160,-5335.49467396,0.00029103,30]
[336581140,1724955232187,-4717.62917743,0.00029103,30]
[336581141,1724955232214,-255.0,0.00029103,120]
[336581142,1724955232241,-1269.33028991,0.00029103,120]
[336581143,1724955232266,-2398.07240192,0.00029103,120]
[336581144,1724955232292,-3051.80443745,0.00029103,120]
[336581145,1724955232318,-541.71527572,0.00029103,120]
[336581146,1724955232866,-427.2929905,0.00029103,120]
[336581147,1724955232944,-657.52517237,0.00029103,120]
[336581148,1724955232969,-150000.0,0.00029103,30]
[336581149,1724955232994,-223215.41755082,0.00029103,30]
[336581150,1724955233018,-14706.49962832,0.00029103,30]
[336581151,1724955233042,-913.66824629,0.00029103,30]
[336581152,1724955233067,-1736.23467803,0.00029103,120]
[336581153,1724955233091,-3252.36583004,0.00029103,120]
[336581154,1724955233115,-499.81137574,0.00029103,120]
[336581155,1724955233138,-465.08958716,0.00029103,120]
[336581156,1724955233162,-1000.0,0.00029103,30]
[336581157,1724955233186,-1549321.971,0.00029103,30]
[336581158,1724955233209,-150.1,0.00029103,40]
[336581159,1724955233233,-155.539485,0.00029103,40]
[336581160,1724955233259,-993.0,0.00029103,30]
[336581161,1724955233282,-1000.0,0.00029103,30]
[336581162,1724955233306,-1000.0,0.00029103,30]
[336581163,1724955233331,-1000.0,0.00029103,30]
[336581164,1724955233355,-1000.0,0.00029103,30]
[336581165,1724955233379,-1000.0,0.00029103,30]
[336581166,1724955233404,-1000.0,0.00029103,30]
[336581167,1724955233428,-1000.0,0.00029103,30]
[336581168,1724955233452,-1000.0,0.00029103,30]
[336581169,1724955233476,-1000.0,0.00029103,30]
[336581170,1724955233500,-1000.0,0.00029103,30]
[336581171,1724955233523,-1000.0,0.00029103,30]
[336581172,1724955233547,-1000.0,0.00029103,30]
[336581173,1724955233571,-1000.0,0.00029103,30]
[336581174,1724955233595,-1000.0,0.00029103,30]
[336581175,1724955233622,-1000.0,0.00029103,30]
[336581176,1724955233648,-1000.0,0.00029103,30]
[336581177,1724955233673,-1000.0,0.00029103,30]
[336581178,1724955233703,-1000.0,0.00029103,30]
[336581179,1724955233727,-1000.0,0.00029103,30]
[336581180,1724955233752,-1000.0,0.00029103,30]
[336581181,1724955233776,-1000.0,0.00029103,30]
[336581182,1724955233801,-1000.0,0.00029103,30]
[336581183,1724955233825,-1000.0,0.00029103,30]
[336581184,1724955233849,-1000.0,0.00029103,30]
[336581185,1724955233875,-1696.37542,0.00029103,30]
[336581186,1724955245294,-496.35,0.00023814,30]
[336581187,1724955245875,-454.07648576,0.00024931,30]
[336581188,1724955245995,-500.0,0.00024932,120]
[336581189,1724955246019,-1000.0,0.00025,30]
[336581190,1724955246047,-1006.40765108,0.00025,60]
[336581191,1724955246072,-1000.0,0.00025,60]
[336581192,1724955246096,-1500.0,0.00025,120]
[336581193,1724955246121,-150.0,0.00025,60]
[336581194,1724955246148,-630.42158623,0.00025,120]
[336581195,1724955246175,-1000.0,0.00025,120]
[336581196,1724955246198,-2283.0,0.00025,30]
[336581197,1724955246220,-2030.0,0.00025,120]
[336581198,1724955246243,-200.0,0.00025,120]
[336581199,1724955246266,-240.87801482,0.00025,120]
[336581200,1724955246290,-2198.52983548,0.0002509,120]
[336581201,1724955246314,-1000.0,0.00025171,30]
[336581202,1724955246337,-1000.0,0.00025342,30]
[336581203,1724955246362,-1000.0,0.00025514,30]
[336581204,1724955246386,-288.0,0.00025522,120]
[336581205,1724955246411,-1000.0,0.00025685,30]
[336581206,1724955246434,-1000.0,0.00025856,30]
[336581207,1724955246458,-1000.0,0.00026,60]
[336581208,1724955246484,-2000.0,0.00026,120]
[336581209,1724955246508,-150.0,0.00026,120]
[336581210,1724955246532,-3794.18553124,0.00026,120]
[336581211,1724955246557,-1000.0,0.00026027,30]
[336581212,1724955246581,-1000.0,0.00026199,30]
[336581213,1724955246605,-1000.0,0.0002637,30]
[336581214,1724955246629,-1000.0,0.00026541,30]
[336581215,1724955246656,-1000.0,0.00026712,30]
[336581216,1724955246682,-1000.0,0.00026884,30]
[336581217,1724955246708,-1696.48953871,0.000269,120]
[336581218,1724955246733,-496.35,0.00026975,30]
[336581219,1724955246757,-800.0,0.00026986,120]
[336581220,1724955246784,-800.0,0.00026986,120]
[336581221,1724955246808,-800.0,0.00026986,120]
[336581222,1724955246831,-800.0,0.00026986,120]
[336581223,1724955246856,-800.0,0.00026986,120]
[336581224,1724955246882,-800.0,0.00026986,120]
[336581225,1724955246909,-800.0,0.00027,120]
[336581226,1724955246935,-645.86,0.00027,120]
[336581227,1724955246959,-1871.90942389,0.00027,120]
[336581228,1724955246983,-1003.55059272,0.00027,120]
[336581229,1724955247007,-665.89322344,0.00027,120]
[336581230,1724955247029,-2000.0,0.00027,120]
[336581231,1724955247053,-18352.34691912,0.00027,120]
[336581232,1724955247077,-2034.0,0.00027,120]
[336581233,1724955247101,-1000.0,0.00027055,30]
[336581234,1724955247127,-1000.0,0.00027226,30]
[336581235,1724955247152,-239.29956844,0.0002736,120]
[336581236,1724955247176,-2000.0,0.00027397,30]
[336581237,1724955247200,-2000.0,0.00027397,30]
[336581238,1724955247224,-2000.0,0.00027397,30]
[336581239,1724955247247,-2000.0,0.00027397,30]
[336581240,1724955247272,-2000.0,0.00027397,30]
[336581241,1724955247297,-2000.0,0.00027397,30]
[336581242,1724955247321,-2000.0,0.00027397,30]
[336581243,1724955247345,-2000.0,0.00027397,30]
[336581244,1724955247369,-2000.0,0.00027397,30]
[336581245,1724955247394,-2000.0,0.00027397,30]
[336581246,1724955247709,-2000.0,0.00027397,30]
[336581247,1724955247736,-2000.0,0.00027397,30]
[336581248,1724955247763,-955.66230677,0.00027397,30]
[336581249,1724955247789,-1000.0,0.00027397,30]
[336581250,1724955247814,-200.0,0.00027397,60]
[336581251,1724955247840,-4000.0,0.00027397,30]
[336581252,1724955247866,-1000.0,0.00027568,30]
[336581253,1724955247890,-553.997417,0.00027686,120]
[336581254,1724955247917,-2000.0,0.00027686,120]
[336581255,1724955247942,-172.344111,0.00027686,120]
[336581256,1724955247965,-200.0,0.00027686,120]
[336581257,1724955247990,-150.0,0.00027702,120]
[336581258,1724955248014,-1000.0,0.0002774,30]
[336581259,1724955248039,-150.0,0.00027901,120]
[336581260,1724955248063,-1000.0,0.00027911,30]
[336581261,1724955248088,-2000.0,0.00028,120]
[336581262,1724955248110,-1000.0,0.00028,30]
[336581263,1724955248134,-150.0,0.00028,120]
[336581264,1724955248160,-759.31,0.00028,120]
[336581265,1724955248184,-1982.4256837,0.00028,120]
[336581266,1724955248209,-150.0,0.00028,120]
[336581267,1724955248232,-150.0,0.00028013,120]
[336581268,1724955248255,-150.0,0.00028032,120]
[336581269,1724955248277,-1000.0,0.00028082,30]
[336581270,1724955248302,-150.0,0.00028153,120]
[336581271,1724955248326,-1000.0,0.00028253,30]
[336581272,1724955248351,-288.0,0.00028357,120]
[336581273,1724955248374,-150.0,0.00028421,120]
[336581274,1724955248402,-1000.0,0.00028425,30]
[336581275,1724955248426,-1000.0,0.00028596,30]
[336581276,1724955248449,-2000.0,0.00028706,120]
[336581277,1724955248474,-1000.0,0.00028767,30]
[336581278,1724955248500,-2289.68473719,0.00028767,120]
[336581279,1724955248524,-1000.0,0.00028938,30]
[336581280,1724955248549,-1505.1888629,0.00029,30]
[336581281,1724955248576,-215.77,0.000291,31]
[336581282,1724955248603,-215.77,0.000291,31]
[336581283,1724955248628,-215.77,0.000291,31]
[336581284,1724955248653,-215.77,0.000291,31]
[336581285,1724955248679,-215.77,0.000291,31]
[336581286,1724955248708,-215.77,0.000291,31]
[336581287,1724955248735,-215.77,0.000291,31]
[336581288,1724955248763,-215.77,0.000291,31]
[336581289,1724955248792,-215.77,0.000291,31]
[336581290,1724955248817,-215.77,0.000291,31]
[336581291,1724955248843,-215.77,0.000291,31]
[336581292,1724955248871,-215.77,0.000291,31]
[336581293,1724955248901,-215.77,0.000291,31]
[336581294,1724955248927,-215.77,0.000291,31]
[336581295,1724955248952,-215.77,0.000291,31]
[336581296,1724955248977,-215.77,0.000291,31]
[336581297,1724955249008,-1000.0,0.0002911,30]
[336581298,1724955249032,-150.0,0.00029163,120]
[336581299,1724955249055,-150.0,0.00029198,120]
[336581300,1724955249079,-186.66,0.00029237,120]
[336581301,1724955249102,-1000.0,0.00029281,30]
[336581302,1724955249124,-150.0,0.00029313,120]
[336581303,1724955249148,-150.0,0.00029424,120]
[336581304,1724955249173,-1000.0,0.00029452,30]
[336581305,1724955249197,-800.0,0.000295,120]
[336581306,1724955249220,-1000.0,0.00029623,30]
[336581307,1724955249242,-150.0,0.00029631,120]
[336581308,1724955249265,-150.0,0.00029662,120]
[336581309,1724955249292,-2000.0,0.00029727,120]
[336581310,1724955249316,-150.0,0.0002974,120]
[336581311,1724955249339,-1000.0,0.00029795,30]
[336581312,1724955249362,-150.0,0.00029809,120]
[336581313,1724955249385,-150.0,0.00029914,120]
[336581314,1724955249415,-1000.0,0.00029966,30]
[336581315,1724955249442,-50000.0,0.0003,30]
[336581316,1724955249468,-151.0,0.0003,120]
[336581317,1724955249491,-151.0,0.0003,120]
[336581318,1724955249513,-455.84108589,0.0003,120]
[336581319,1724955249536,-2275.41657669,0.0003,90]
[336581320,1724955249559,-1000.0,0.0003,120]
[336581321,1724955249582,-2000.0,0.0003,120]
[336581322,1724955249606,-1000.0,0.0003,90]
[336581323,1724955249632,-150.0,0.0003,120]
[336581324,1724955249657,-500.0,0.0003,120]
[336581325,1724955249680,-1191.46780955,0.0003,30]
[336581326,1724955249706,-280.0,0.0003,30]
[336581327,1724955249730,-5958.1,0.0003,30]
[336581328,1724955249753,-1800.0,0.0003,31]
[336581329,1724955249778,-3238.99825395,0.0003,90]
[336581330,1724955249801,-200.0,0.0003,120]
[336581331,1724955249825,-496.35,0.00030137,30]
[336581332,1724955249849,-200.0,0.00030137,60]
[336581333,1724955249872,-1000.0,0.00030137,30]
[336581334,1724955249895,-3908.0,0.0003015,120]
[336581335,1724955249922,-215.77,0.000302,31]
[336581336,1724955249947,-215.77,0.000302,31]
[336581337,1724955249972,-215.77,0.000302,31]
[336581338,1724955249995,-215.77,0.000302,31]
[336581339,1724955250020,-215.77,0.000302,31]
[336581340,1724955250046,-215.77,0.000302,31]
[336581341,1724955250072,-215.77,0.000302,31]
[336581342,1724955250100,-215.77,0.000302,31]
[336581343,1724955250125,-215.77,0.000302,31]
[336581344,1724955250151,-215.77,0.000302,31]
[336581345,1724955250176,-215.77,0.000302,31]
[336581346,1724955250199,-215.77,0.000302,31]
[336581347,1724955250224,-215.77,0.000302,31]
[336581348,1724955250247,-215.77,0.000302,31]
[336581349,1724955250466,-215.77,0.000302,31]
[336581350,1724955250490,-215.77,0.000302,31]
[336581351,1724955250515,-215.77,0.000302,31]
[336581352,1724955250540,-215.77,0.000302,31]
[336581353,1724955250564,-215.77,0.000302,31]
[336581354,1724955250588,-215.77,0.000302,31]
[336581355,1724955250614,-215.77,0.000302,31]
[336581356,1724955250640,-215.77,0.000302,31]
[336581357,1724955250665,-215.77,0.000302,31]
[336581358,1724955250692,-215.77,0.000302,31]
[336581359,1724955250716,-1000.0,0.00030308,30]
[336581360,1724955250741,-150.0,0.00030452,120]
[336581361,1724955250767,-1000.0,0.00030479,30]
[336581362,1724955250791,-150.0,0.00030608,120]
[336581363,1724955250814,-1000.0,0.00030651,30]
[336581364,1724955250838,-2000.0,0.00030748,120]
[336581365,1724955250865,-250.0,0.000308,30]
[336581366,1724955250893,-150.0,0.00030807,120]
[336581367,1724955250924,-1000.0,0.00030822,30]
[336581368,1724955250951,-150.0,0.00030958,120]
[336581369,1724955250978,-151.0,0.00030959,120]
[336581370,1724955251005,-150.0,0.00030988,120]
[336581371,1724955251030,-1000.0,0.00030993,30]
[336581372,1724955251059,-50000.0,0.00031,31]
[336581373,1724955251083,-1000.0,0.00031164,30]
[336581374,1724955251110,-288.0,0.00031193,120]
[336581375,1724955251139,-215.77,0.000313,31]
[336581376,1724955251165,-215.77,0.000313,31]
[336581377,1724955251190,-215.77,0.000313,31]
[336581378,1724955251218,-215.77,0.000313,31]
[336581379,1724955251245,-215.77,0.000313,31]
[336581380,1724955251272,-215.77,0.000313,31]
[336581381,1724955251298,-215.77,0.000313,31]
[336581382,1724955251327,-215.77,0.000313,31]
[336581383,1724955251354,-215.77,0.000313,31]
[336581384,1724955251385,-215.77,0.000313,31]
[336581385,1724955251411,-215.77,0.000313,31]
[336581386,1724955251437,-215.77,0.000313,31]
[336581387,1724955251463,-215.77,0.000313,31]
[336581388,1724955251490,-215.77,0.000313,31]
[336581389,1724955251517,-215.77,0.000313,31]
[336581390,1724955251544,-215.77,0.000313,31]
[336581391,1724955251570,-215.77,0.000313,31]
[336581392,1724955251595,-215.77,0.000313,31]
[336581393,1724955251621,-215.77,0.000313,31]
[336581394,1724955251647,-215.77,0.000313,31]
[336581395,1724955251679,-215.77,0.000313,31]
[336581396,1724955251709,-215.77,0.000313,31]
[336581397,1724955251735,-215.77,0.000313,31]
[336581398,1724955251762,-215.77,0.000313,31]
[336581399,1724955251788,-150.0,0.00031304,120]
[336581400,1724955251814,-1000.0,0.00031336,30]
[336581401,1724955251838,-150.0,0.00031345,120]
[336581402,1724955251862,-1629.50866611,0.000315,30]
[336581403,1724955251887,-1000.0,0.00031507,30]
[336581404,1724955251917,-1000.0,0.00031678,30]
[336581405,1724955251942,-150.0,0.00031742,120]
[336581406,1724955251967,-2000.0,0.00031768,120]
[336581407,1724955251994,-150.0,0.00031848,120]
[336581408,1724955252018,-1000.0,0.00031849,30]
[336581409,1724955252042,-151.0,0.00031918,120]
[336581410,1724955252069,-50000.0,0.00032,32]
[336581411,1724955252093,-800.0,0.00032,120]
[336581412,1724955252118,-2000.0,0.00032,120]
[336581413,1724955252141,-150.0,0.00032,120]
[336581414,1724955252165,-150.0,0.00032,31]
[336581415,1724955252188,-1000.0,0.00032,120]
[336581416,1724955252211,-11512.19194415,0.00032,30]
[336581417,1724955252235,-1061.07672252,0.00032,30]
[336581418,1724955252261,-1000.0,0.00032021,30]
[336581419,1724955252286,-150.0,0.00032026,120]
[336581420,1724955252311,-150.0,0.00032081,120]
[336581421,1724955252337,-150.0,0.00032109,120]
[336581422,1724955252363,-200.0,0.00032158,120]
[336581423,1724955252389,-1000.0,0.00032192,30]
[336581424,1724955252415,-1000.0,0.00032363,30]
[336581425,1724955252439,-150.0,0.00032374,120]
[336581426,1724955252466,-215.77,0.000324,31]
[336581427,1724955252494,-215.77,0.000324,31]
[336581428,1724955252519,-215.77,0.000324,31]
[336581429,1724955252546,-215.77,0.000324,31]
[336581430,1724955252572,-215.77,0.000324,31]
[336581431,1724955252599,-215.77,0.000324,31]
[336581432,1724955252628,-215.77,0.000324,31]
[336581433,1724955252656,-215.77,0.000324,31]
[336581434,1724955252688,-215.77,0.000324,31]
[336581435,1724955252716,-215.77,0.000324,31]
[336581436,1724955252745,-215.77,0.000324,31]
[336581437,1724955252770,-215.77,0.000324,31]
[336581438,1724955252797,-215.77,0.000324,31]
[336581439,1724955252824,-215.77,0.000324,31]
[336581440,1724955252851,-215.77,0.000324,31]
[336581441,1724955252878,-215.77,0.000324,31]
[336581442,1724955252907,-215.77,0.000324,31]
[336581443,1724955252932,-215.77,0.000324,31]
[336581444,1724955252957,-215.77,0.000324,31]
[336581445,1724955252982,-215.77,0.000324,31]
[336581446,1724955253007,-215.77,0.000324,31]
[336581447,1724955253031,-215.77,0.000324,31]
[336581448,1724955253057,-215.77,0.000324,31]
[336581449,1724955253082,-215.77,0.000324,31]
[336581450,1724955253108,-150.0,0.00032481,120]
[336581451,1724955253131,-1672.132868,0.000325,120]
[336581452,1724955253348,-1000.0,0.00032534,30]
[336581453,1724955253373,-150.0,0.00032556,120]
[336581454,1724955253398,-150.0,0.00032683,120]
[336581455,1724955253422,-4903.0,0.000327,35]
[336581456,1724955253445,-1000.0,0.00032705,30]
[336581457,1724955253470,-2000.0,0.00032789,120]
[336581458,1724955253493,-2233.5071427,0.000328,90]
[336581459,1724955253516,-150.0,0.0003281,120]
[336581460,1724955253538,-500.0,0.00032876,120]
[336581461,1724955253561,-500.0,0.00032876,120]
[336581462,1724955253583,-500.0,0.00032876,120]
[336581463,1724955253605,-500.0,0.00032876,120]
[336581464,1724955253629,-500.0,0.00032876,120]
[336581465,1724955253653,-311.25943353,0.00032876,120]
[336581466,1724955253677,-200.0,0.00032877,60]
[336581467,1724955253703,-151.0,0.00032877,120]
[336581468,1724955253727,-1040.80012326,0.00032877,30]
[336581469,1724955253754,-50000.0,0.00033,33]
[336581470,1724955253783,-160.81034201,0.00033,120]
[336581471,1724955253808,-150.0,0.00033,120]
[336581472,1724955253832,-577.56938517,0.00033,90]
[336581473,1724955253858,-496.35,0.00033298,30]
[336581474,1724955253883,-150.0,0.00033301,120]
[336581475,1724955253909,-150.0,0.00033342,120]
[336581476,1724955253933,-150.0,0.00033402,120]
[336581477,1724955253957,-150.0,0.00033404,120]
[336581478,1724955253980,-11512.19194415,0.000335,30]
[336581479,1724955254006,-215.77,0.000335,31]
[336581480,1724955254031,-215.77,0.000335,31]
[336581481,1724955254055,-215.77,0.000335,31]
[336581482,1724955254080,-215.77,0.000335,31]
[336581483,1724955254105,-215.77,0.000335,31]
[336581484,1724955254131,-215.77,0.000335,31]
[336581485,1724955254156,-215.77,0.000335,31]
[336581486,1724955254181,-215.77,0.000335,31]
[336581487,1724955254207,-215.77,0.000335,31]
[336581488,1724955254232,-215.77,0.000335,31]
[336581489,1724955254257,-215.77,0.000335,31]
[336581490,1724955254282,-215.77,0.000335,31]
[336581491,1724955254306,-150.0,0.00033639,120]
[336581492,1724955254330,-150.0,0.00033696,120]
[336581493,1724955254354,-150.0,0.00033724,120]
[336581494,1724955254377,-2000.0,0.0003381,120]
[336581495,1724955254400,-151.0,0.00033836,120]
[336581496,1724955254425,-150.0,0.00033901,120]
[336581497,1724955254450,-150.0,0.00033978,120]
[336581498,1724955254475,-50000.0,0.00034,34]
[336581499,1724955254498,-300.0,0.00034,120]
[336581500,1724955254521,-1800.90656161,0.00034,120]
[336581501,1724955254543,-1000.0,0.00034,120]
[336581502,1724955254567,-2000.0,0.00034,120]
[336581503,1724955254595,-150.0,0.00034,120]
[336581504,1724955254618,-1000.0,0.00034,120]
[336581505,1724955254643,-288.0,0.00034029,120]
[336581506,1724955254669,-150.0,0.00034097,120]
[336581507,1724955254697,-7069.94,0.00034123,120]
[336581508,1724955254721,-150.0,0.00034139,120]
[336581509,1724955254746,-150.0,0.00034148,120]
[336581510,1724955254772,-331.082919,0.00034298,119]
[336581511,1724955254797,-577.082919,0.00034398,120]
[336581512,1724955254821,-3000.0,0.000344,120]
[336581513,1724955254847,-150.0,0.00034467,120]
[336581514,1724955254873,-331.082919,0.00034498,120]
[336581515,1724955254898,-800.0,0.000345,120]
[336581516,1724955254927,-150.0,0.00034554,120]
[336581517,1724955254951,-577.082919,0.00034598,120]
[336581518,1724955254975,-150.0,0.0003466,120]
[336581519,1724955254999,-150.0,0.00034664,120]
[336581520,1724955255023,-331.082919,0.00034698,120]
[336581521,1724955255047,-150.0,0.00034706,120]
[336581522,1724955255071,-151.0,0.00034795,120]
[336581523,1724955255095,-577.082919,0.00034798,119]
[336581524,1724955255119,-1132.530258,0.000348,30]
[336581525,1724955255143,-150.0,0.00034813,120]
[336581526,1724955255169,-2000.0,0.0003483,120]
[336581527,1724955255193,-8599.1990514,0.00034874,31]
[336581528,1724955255216,-271.082919,0.00034898,119]
[336581529,1724955255242,-150.0,0.00034966,120]
[336581530,1724955255264,-150.0,0.00034975,120]
[336581531,1724955255288,-331.082919,0.00034998,119]
[336581532,1724955255314,-50000.0,0.00035,35]
[336581533,1724955255338,-300.0,0.00035,120]
[336581534,1724955255361,-972.23522474,0.00035,60]
[336581535,1724955255384,-701.52720303,0.00035,30]
[336581536,1724955255409,-5000.0,0.00035,60]
[336581537,1724955255432,-5000.0,0.00035,60]
[336581538,1724955255454,-150.0,0.00035,30]
[336581539,1724955255478,-1510.040344,0.00035,30]
[336581540,1724955255501,-600.0,0.00035,120]
[336581541,1724955255524,-196.37442733,0.00035,120]
[336581542,1724955255546,-20000.0,0.00035,30]
[336581543,1724955255568,-414.0,0.00035,120]
[336581544,1724955255591,-11512.19194415,0.00035,30]
[336581545,1724955255614,-200.0,0.00035,120]
[336581546,1724955255638,-150.0,0.00035,120]
[336581547,1724955255665,-186.66,0.00035084,120]
[336581548,1724955255691,-577.082919,0.00035098,120]
[336581549,1724955255713,-6915.91430569,0.000351,30]
[336581550,1724955255738,-150.0,0.00035158,120]
[336581551,1724955255762,-331.082919,0.00035198,119]
[336581552,1724955255787,-150.0,0.00035213,120]
[336581553,1724955255811,-271.082919,0.00035298,119]
[336581554,1724955256053,-150.0,0.00035335,120]
[336581555,1724955256080,-331.082919,0.00035398,119]
[336581556,1724955256105,-577.082919,0.00035498,120]
[336581557,1724955256128,-1887.550431,0.000355,30]
[336581558,1724955256154,-331.082919,0.00035598,119]
[336581559,1724955256188,-2265.060517,0.000356,30]
[336581560,1724955256213,-249.55574567,0.00035616,60]
[336581561,1724955256237,-577.082919,0.00035698,120]
[336581562,1724955256262,-2265.060517,0.000357,30]
[336581563,1724955256287,-151.0,0.00035753,120]
[336581564,1724955256311,-331.082919,0.00035798,119]
[336581565,1724955256335,-2642.570603,0.000358,30]
[336581566,1724955256359,-2265.060517,0.0003582,30]
[336581567,1724955256384,-2000.0,0.00035851,120]
[336581568,1724955256412,-271.082919,0.00035898,119]